bitfinex-derivatives/quotes_ETHF0:USTF0_20250505
["timestamp","ask_amount","ask_price","bid_price","bid_amount"]
[1746405865959,1.93396,1814.6,1814.5,1.8400232]
[1746405866256,1.93396,1814.6,1814.5,2.9421932]
[1746405866961,1.93396,1814.6,1814.5,1.8400232]
[1746405871563,7.19017,1814.8,1814.5,1.8400232]
[1746405871564,4.4351,1814.8,1814.5,1.8400232]
[1746405871757,1.10208,1814.7,1814.6,0.94411712]
[1746405871956,1.10208,1814.7,1814.6,2.64531712]
[1746405872864,1.10201,1814.8,1814.7,1.10203]
[1746405873059,1.10201,1814.8,1814.7,3.55853]
[1746405873457,1.10201,1814.8,1814.7,3.66874105]
[1746405874062,11.30981141,1814.9,1814.7,2.56671105]
[1746405874258,12.41179141,1814.9,1814.8,1.74720498]
[1746405874869,8.74558,1814.9,1814.8,1.74720498]
[1746405878463,8.74558,1814.9,1814.8,2.84919498]
[1746405878660,7.90278,1814.9,1814.8,2.84919498]
[1746405879469,7.90278,1814.9,1814.8,1.74720498]
[1746405879670,7.90278,1814.9,1814.8,2.84919498]
[1746405882072,7.90278,1814.9,1814.8,1.74720498]
[1746405882774,9.53198,1814.9,1814.8,1.74720498]
[1746405884275,9.53198,1814.9,1814.8,0.11020498]
[1746405894986,7.90278,1814.9,1814.8,1.79420498]
[1746405897387,9.56278,1814.9,1814.8,0.11020498]
[1746405900780,7.90278,1814.9,1814.8,0.11020498]
[1746405900984,7.90278,1814.9,1814.8,3.38540498]
[1746405902892,7.90278,1814.9,1814.8,1.69280498]
[1746405903391,7.90278,1814.9,1814.8,0.11020498]
[1746405903592,9.90696941,1814.9,1814.8,0.11020498]
[1746405905690,3.2078,1814.9,1814.8,0.11020498]
[1746405905891,4.46301141,1815.1,1814.8,0.11020498]
[1746405905892,3.66621141,1815.1,1815.0,1.10187]
[1746405906397,3.66621141,1815.1,1815.0,6.10187]
[1746405906595,3.66621141,1815.1,1815.0,7.82827]
[1746405906889,3.66621141,1815.1,1815.0,11.41827]
[1746405907097,3.66621141,1815.1,1815.0,14.62607]
[1746405907796,3.66621141,1815.1,1815.0,55.42607]
[1746405909499,1.10161,1815.5,1815.0,70.24354201]
[1746405909700,1.10161,1815.5,1815.3,1.10163]
[1746405909892,1.10161,1815.5,1815.4,4.52819855]
[1746405910500,1.10161,1815.5,1815.4,3.42656855]
[1746405911397,3.47505,1815.6,1815.4,3.42656855]
[1746405911598,3.47505,1815.6,1815.5,1.84396248]
[1746405912501,1.90335,1815.6,1815.5,1.84396248]
[1746405912705,1.90335,1815.6,1815.5,2.94552248]
[1746405913206,0.8018,1815.6,1815.5,2.94552248]
[1746405915602,1.9033,1815.6,1815.5,2.94552248]
[1746405915804,0.8018,1815.6,1815.5,2.94552248]
[1746405916905,6.87401141,1816.0,1815.9,1.10132]
[1746405917500,3.66621141,1816.0,1815.9,9.30912]
[1746405917902,3.66621141,1816.0,1815.9,10.91732]
[1746405918103,3.66621141,1816.0,1815.9,9.50232]
[1746405918702,3.66621141,1816.2,1816.1,1.1012]
[1746405919110,3.66621141,1816.2,1816.1,41.9012]
[1746405919411,4.76735141,1816.2,1816.1,41.9012]
[1746405919601,4.49431141,1816.2,1816.1,41.9012]
[1746405919801,3.66621141,1816.2,1816.1,41.9012]
[1746405920001,3.66621141,1816.2,1816.1,42.6906]
[1746405920710,4.76735141,1816.2,1816.1,42.6906]
[1746405921205,4.76735141,1816.2,1816.1,41.5894]
[1746405921514,4.76735141,1816.2,1816.1,42.6906]
[1746405921712,4.76735141,1816.2,1816.1,44.39]
[1746405922610,4.76735141,1816.2,1816.1,42.4994]
[1746405922811,10.50695141,1816.2,1816.1,42.4994]
[1746405923113,1.1012,1816.1,1816.0,5.898]
[1746405923406,3.6552,1816.1,1816.0,5.898]
[1746405923707,8.6552,1816.1,1816.0,5.898]
[1746405924005,1.1015,1815.6,1815.5,7.37686449]
[1746405924310,4.3093,1815.6,1815.5,7.37686449]
[1746405924912,5.9492,1815.6,1815.5,7.37686449]
[1746405925608,10.9492,1815.6,1815.5,7.37686449]
[1746405925913,14.5332,1815.6,1815.5,7.37686449]
[1746405926312,1.10183,1815.1,1814.8,8.59186]
[1746405926610,1.10183,1815.1,1814.9,2.69382]
[1746405927410,2.73123,1815.1,1814.9,2.69382]
[1746405928211,5.93903,1815.1,1814.9,2.69382]
[1746405929611,1.10187,1815.0,1814.9,2.69382]
[1746405929813,5.93905,1815.1,1814.9,2.69382]
[1746405930215,1.10187,1815.0,1814.9,2.69382]
[1746405932110,1.10187,1815.0,1814.9,1.5919]
[1746405932317,2.69897,1815.0,1814.9,1.5919]
[1746405933905,4.30965,1815.1,1815.0,1.10187]
[1746405934111,3.2078,1815.1,1815.0,1.10187]
[1746405934522,2.80329,1815.2,1815.1,1.10181]
[1746405935117,1.10179,1815.2,1815.1,1.10181]
[1746405935415,1.10179,1815.2,1815.1,2.82711]
[1746405935618,1.10179,1815.2,1815.1,1.7253]
[1746405936115,5.96209,1815.3,1814.8,1.10194]
[1746405936316,8.50727,1815.1,1814.6,11.1248]
[1746405936511,1.94042,1815.0,1814.6,5.2268]
[1746405936712,1.94042,1815.0,1814.8,1.10194]
[1746405937012,0.8385,1815.0,1814.9,1.10193]
[1746405937216,1.94037,1815.0,1814.9,1.10193]
[1746405938718,1.10193,1814.9,1814.7,1.7087]
[1746405938921,1.10193,1814.9,1814.8,1.7087]
[1746405939420,2.81723,1814.9,1814.8,1.7087]
[1746405941026,2.81723,1814.9,1814.8,2.81069]
[1746405941421,2.81723,1814.9,1814.8,1.7087]
[1746405943331,1.10205,1814.7,1814.6,9.53666]
[1746405943512,1.10205,1814.7,1814.6,11.27366]
[1746405943823,1.10205,1814.7,1814.6,7.68966]
[1746405944729,2.69661,1814.8,1814.7,1.10205]
[1746405945026,1.10201,1814.8,1814.7,2.83905]
[1746405946025,1.10201,1814.8,1814.7,1.737]
[1746405947629,1.10211,1814.6,1814.5,1.10215]
[1746405947928,1.10211,1814.6,1814.5,2.71765]
[1746405949932,1.94296,1814.7,1814.6,1.10211]
[1746405950131,1.102,1814.8,1814.7,1.10199]
[1746405950630,1.10198,1814.9,1814.8,1.10196]
[1746405950831,2.78132,1815.0,1814.9,1.10193]
[1746405951034,1.94042,1815.0,1814.9,1.10193]
[1746405951225,1.10192,1815.0,1814.9,1.10193]
[1746405952127,6.7918,1815.1,1814.8,1.90184]
[1746405952128,1.10195,1814.9,1814.8,1.90184]
[1746405952931,1.10191,1815.0,1814.9,1.1019]
[1746405957540,1.10193,1814.9,1814.8,1.90184]
[1746405960438,1.93502,1815.0,1814.9,1.10193]
[1746405960639,7.89366,1815.1,1815.0,1.10187]
[1746405960936,6.7918,1815.1,1815.0,1.10187]
[1746405961139,3.2078,1815.1,1815.0,1.10187]
[1746405961340,1.9316,1815.2,1815.1,1.10181]
[1746405961934,1.10165,1815.4,1815.3,1.10169]
[1746405962139,1.10176,1815.2,1815.1,1.10176]
[1746405962938,1.10176,1815.2,1815.1,41.90176]
[1746405963140,1.10173,1815.3,1815.2,1.10174]
[1746405963644,3.2078,1815.4,1815.1,40.8]
[1746405963940,1.10172,1815.3,1815.2,1.10173]
[1746405964130,1.10166,1815.4,1815.3,1.10169]
[1746405964642,1.10169,1815.3,1815.2,1.9311]
[1746405964840,1.10167,1815.4,1815.3,1.10167]
[1746405965539,1.93141,1815.5,1815.4,1.10163]
[1746405965940,1.10161,1815.5,1815.4,2.75573]
[1746405966136,4.4228,1815.6,1815.5,1.10156]
[1746405966137,5.52435,1815.6,1815.5,1.10156]
[1746405966347,3.2078,1815.7,1815.6,1.1015]
[1746405966538,0.8323,1815.8,1815.7,1.10144]
[1746405966740,4.30915,1815.9,1815.8,1.10138]
[1746405967038,6.1406,1816.0,1815.7,1.6541]
[1746405967039,5.51176184,1816.2,1815.7,1.6541]
[1746405967247,4.76745141,1816.1,1815.9,1.10129]
[1746405967542,4.76745141,1816.1,1816.0,1.7095]
[1746405967942,3.66621141,1816.1,1816.0,2.81076]
[1746405968144,6.38509141,1816.2,1816.0,2.81072]
[1746405968347,6.38509141,1816.2,1816.1,1.7095]
[1746405969042,4.76739141,1816.2,1816.1,2.8107]
[1746405969243,3.66621141,1816.2,1816.1,2.8107]
[1746405970145,3.66621141,1816.2,1816.1,11.3947]
[1746405970444,3.66621141,1816.2,1816.1,52.1947]
[1746405970637,3.66621141,1816.2,1816.1,47.1947]
[1746405972447,1.10097,1816.5,1816.4,1.10102]
[1746405972642,3.2078,1816.6,1816.1,46.0935]
[1746405972643,1.6961,1816.6,1816.5,1.10096]
[1746405972945,1.6955,1816.7,1816.6,1.1009]
[1746405974242,4.824,1816.8,1816.7,1.10084]
[1746405974243,3.2078,1816.8,1816.7,1.10084]
[1746405975041,4.30858,1816.8,1816.6,1.10086]
[1746405975240,4.30858,1816.8,1816.7,1.6473]
[1746405976945,5.89428,1816.8,1816.7,1.6473]
[1746405977250,1.10108,1816.3,1816.2,3.2078]
[1746405977541,1.10114,1816.2,1816.1,40.8]
[1746405977743,1.10132,1815.9,1815.8,18.16675503]
[1746405977942,1.10132,1815.9,1815.8,19.81295503]
[1746405978757,1.94091,1816.0,1815.8,20.91433503]
[1746405978960,2.4153,1816.0,1815.8,19.81295503]
[1746405979259,1.10132,1815.9,1815.8,18.16675503]
[1746405979465,3.51662,1816.0,1815.8,19.26812503]
[1746405979654,1.10132,1815.9,1815.8,18.16675503]
[1746405980666,1.10138,1815.8,1815.7,3.2078]
[1746405982161,1.10138,1815.8,1815.7,4.30924]
[1746405982362,1.10138,1815.8,1815.7,3.2078]
[1746405985967,1.1015,1815.6,1815.5,3.2078]
[1746405986357,1.1015,1815.6,1815.5,4.30936]
[1746405986865,7.53688,1815.9,1815.5,4.30936]
[1746405987164,1.10148,1815.7,1815.6,1.1015]
[1746405987365,1.1015,1815.6,1815.5,4.30933]
[1746405988568,4.7835,1815.9,1815.5,3.2078]
[1746405988866,1.10134,1815.9,1815.7,3.2078]
[1746405989161,1.10134,1815.9,1815.8,1.10134]
[1746405989364,0.8396,1816.0,1815.9,1.10132]
[1746405989566,5.09183,1816.1,1816.0,1.10126]
[1746405989868,1.10127,1816.0,1815.9,1.10128]
[1746405990961,3.9906,1816.1,1816.0,1.10126]
[1746405991161,1.10118,1816.2,1816.1,1.1012]
[1746405991368,7.77752,1816.3,1816.2,1.10114]
[1746405991667,0.8524,1816.3,1816.2,1.10114]
[1746405991870,1.10108,1816.3,1816.2,1.10114]
[1746405992068,1.10108,1816.3,1816.1,1.10115]
[1746405992269,1.10108,1816.3,1816.2,1.10114]
[1746405992471,1.10117,1816.2,1816.1,1.10117]
[1746405992770,1.10113,1816.3,1816.1,1.10117]
[1746405993071,1.10113,1816.3,1816.2,1.10114]
[1746405993575,2.70287,1816.4,1816.3,1.10108]
[1746405993867,1.10107,1816.4,1816.3,1.10108]
[1746405994066,5.16078,1816.5,1816.4,1.10102]
[1746405994370,1.10105,1816.4,1816.3,1.10106]
[1746405994969,5.16081,1816.5,1816.3,41.90106]
[1746405995267,1.10102,1816.4,1816.3,41.90106]
[1746405995469,2.72732,1816.4,1816.3,40.8]
[1746405996474,1.10108,1816.3,1816.2,1.7137]
[1746405996667,2.72738,1816.3,1816.2,1.7137]
[1746405997167,2.72738,1816.3,1816.2,42.5137]
[1746405997562,1.10114,1816.2,1816.1,5.898]
[1746405997784,3.60464,1816.2,1816.1,5.898]
[1746406000468,1.10132,1815.9,1815.8,42.4395]
[1746406001578,1.10132,1815.9,1815.8,43.54088]
[1746406001766,1.10132,1815.9,1815.8,42.4395]
[1746406003977,2.72582,1815.9,1815.8,1.6395]
[1746406005975,1.10132,1815.9,1815.8,2.74088]
[1746406006173,1.10119,1816.2,1815.8,6.6395]
[1746406006373,1.10119,1816.2,1816.1,1.1012]
[1746406007180,8.39696,1816.4,1816.0,1.6878]
[1746406007575,1.1012,1816.1,1816.0,2.78901]
[1746406007775,1.1012,1816.1,1816.0,1.6878]
[1746406008180,1.10144,1815.7,1815.6,6.40028]
[1746406008573,1.10144,1815.7,1815.6,47.20028]
[1746406008877,1.10144,1815.7,1815.6,46.0988]
[1746406009682,1.10144,1815.7,1815.6,44.1595]
[1746406010681,1.10144,1815.7,1815.6,42.4407]
[1746406011182,1.10144,1815.7,1815.6,2.7422]
[1746406011483,1.10142,1815.8,1815.7,1.10144]
[1746406011680,1.10142,1815.8,1815.7,1.6407]
[1746406015479,1.10137,1815.9,1815.7,2.74214]
[1746406015681,1.10138,1815.8,1815.7,2.74214]
[1746406016182,1.10137,1815.9,1815.8,1.10138]
[1746406019681,2.75368,1815.7,1815.4,10.47450201]
[1746406019888,1.10156,1815.5,1815.4,7.26670201]
[1746406021388,1.10156,1815.5,1815.4,8.36833201]
[1746406021686,1.10156,1815.5,1815.4,7.26670201]
[1746406023287,0.7843,1815.6,1815.4,7.26670201]
[1746406023585,1.1015,1815.6,1815.5,1.10152]
[1746406023786,1.10156,1815.5,1815.4,7.26670201]
[1746406024687,1.10156,1815.5,1815.4,8.36833201]
[1746406024885,1.10156,1815.5,1815.4,1.10163]
[1746406026690,0.8544,1815.6,1815.3,40.8]
[1746406026882,1.89993,1815.8,1815.3,43.5542]
[1746406027088,1.95577,1815.9,1815.4,5.96187]
[1746406027298,1.10139,1815.8,1815.7,1.10141]
[1746406027680,1.10139,1815.8,1815.7,1.95651]
[1746406029889,3.581,1816.0,1815.8,1.10138]
[1746406030089,1.10132,1815.9,1815.8,1.10138]
[1746406030493,1.10138,1815.8,1815.7,1.9565]
[1746406030783,1.10138,1815.8,1815.7,0.8551]
[1746406031688,1.10144,1815.7,1815.6,1.90846]
[1746406032291,1.1015,1815.6,1815.5,5.53892]
[1746406032485,1.1015,1815.6,1815.5,4.4374]
[1746406032691,1.1015,1815.6,1815.5,3.581]
[1746406032885,1.1015,1815.6,1815.5,4.68256]
[1746406033391,5.93599,1815.7,1815.6,1.1015]
[1746406033586,4.30929,1815.7,1815.6,1.1015]
[1746406033785,1.10149,1815.7,1815.6,1.1015]
[1746406034492,2.71902,1815.8,1815.6,1.1015]
[1746406035293,2.71902,1815.8,1815.4,0.7857]
[1746406035497,2.71902,1815.8,1815.6,1.10147]
[1746406036293,1.10144,1815.7,1815.6,1.10147]
[1746406036486,1.10144,1815.7,1815.4,0.7857]
[1746406036487,2.71902,1815.8,1815.7,1.10144]
[1746406037194,1.10146,1815.7,1815.6,1.10148]
[1746406038294,2.71903,1815.8,1815.7,1.10144]
[1746406039795,1.6176,1815.8,1815.7,1.10144]
[1746406040189,1.10141,1815.8,1815.7,1.10141]
[1746406040589,1.10141,1815.8,1815.7,2.78341]
[1746406041193,3.2078,1816.0,1815.7,1.682]
[1746406041397,4.30908,1816.0,1815.9,1.10132]
[1746406041590,3.2078,1816.0,1815.8,2.5009]
[1746406041790,1.6212,1816.1,1816.0,1.10126]
[1746406042002,1.6326,1816.3,1816.1,1.10116]
[1746406042304,4.35493,1816.3,1816.1,1.10116]
[1746406042598,4.35493,1816.3,1816.2,1.682]
[1746406042793,4.35493,1816.3,1816.2,2.78314]
[1746406043398,3.2538,1816.3,1816.2,2.78314]
[1746406043598,0.83,1816.3,1816.2,2.78314]
[1746406044398,1.93108,1816.3,1816.2,1.682]
[1746406044596,1.93108,1816.3,1816.2,2.78314]
[1746406045392,1.93108,1816.3,1816.2,1.682]
[1746406045690,3.54768,1816.3,1816.2,1.682]
[1746406047500,3.54768,1816.3,1816.2,2.78314]
[1746406048102,3.54768,1816.3,1816.2,1.682]
[1746406049298,1.1012,1816.1,1816.0,9.02007342]
[1746406049500,1.1012,1816.1,1816.0,10.12133342]
[1746406049996,2.7522,1816.1,1816.0,10.12133342]
[1746406050202,0.8501,1816.2,1816.1,1.1012]
[1746406050400,0.8501,1816.2,1816.1,2.8196]
[1746406050702,1.93113,1816.3,1816.1,2.8196]
[1746406050902,1.93113,1816.3,1816.2,1.7184]
[1746406051499,3.58213,1816.3,1816.2,1.7184]
[1746406051797,1.10118,1816.2,1816.0,0.8069]
[1746406052003,2.80118,1816.2,1816.1,1.1012]
[1746406052903,1.7,1816.2,1816.1,1.1012]
[1746406053104,1.10114,1816.2,1816.1,1.10115]
[1746406053702,3.63113,1816.3,1816.1,1.10115]
[1746406053903,3.63113,1816.3,1816.2,1.10114]
[1746406054099,1.93113,1816.3,1816.2,1.10114]
[1746406054300,1.93113,1816.3,1816.1,1.10115]
[1746406054503,3.63113,1816.3,1816.2,1.6433]
[1746406054805,3.63113,1816.3,1815.9,3.2078]
[1746406054806,1.10117,1816.2,1816.0,1.10123]
[1746406055004,1.10117,1816.2,1816.1,1.1012]
[1746406056205,2.53,1816.3,1816.1,1.1012]
[1746406056398,3.63108,1816.3,1816.2,1.7071]
[1746406057606,5.28271,1816.3,1815.9,1.10127]
[1746406057795,1.10124,1816.1,1816.0,2.80836]
[1746406057999,1.10124,1816.1,1816.0,1.10126]
[1746406061309,1.10127,1816.0,1815.9,1.10128]
[1746406063013,1.10124,1816.1,1816.0,1.10124]
[1746406065717,3.62618,1816.2,1816.1,1.1012]
[1746406066414,1.90658,1816.2,1816.1,1.1012]
[1746406067205,6.8118,1816.4,1816.1,1.1012]
[1746406067414,1.10112,1816.3,1816.2,1.10113]
[1746406068626,4.30885,1816.4,1816.2,1.10113]
[1746406068923,4.30885,1816.4,1816.3,2.70588]
[1746406069521,4.30885,1816.4,1816.3,1.91048]
[1746406070227,2.74753,1816.6,1816.3,0.8094]
[1746406070525,1.6359,1816.7,1816.6,1.1009]
[1746406071328,2.73674,1816.7,1816.6,1.1009]
[1746406071724,1.6359,1816.7,1816.6,1.1009]
[1746406072531,2.73674,1816.7,1816.6,1.1009]
[1746406073528,1.1009,1816.6,1816.5,41.90095]
[1746406075930,4.42158,1816.7,1816.5,41.90095]
[1746406076126,4.42158,1816.7,1816.6,1.6551]
[1746406077835,4.42158,1816.7,1816.6,2.756]
[1746406078831,4.42158,1816.7,1816.6,1.6551]
[1746406082936,4.42158,1816.7,1816.6,2.756]
[1746406083236,1.6359,1816.7,1816.6,2.756]
[1746406083434,4.30864,1816.8,1816.6,2.75596]
[1746406083626,4.30864,1816.8,1816.7,1.6177]
[1746406084729,5.94584,1816.8,1816.7,1.6177]
[1746406087130,2.75217,1816.7,1816.3,8.69926]
[1746406087336,1.10096,1816.5,1816.4,1.6869]
[1746406087834,1.92296,1816.5,1816.4,1.6869]
[1746406088031,3.53706,1816.5,1816.4,1.6869]
[1746406089731,1.10108,1816.3,1816.2,48.10167342]
[1746406089932,1.10108,1816.3,1816.2,8.88557342]
[1746406090229,1.10108,1816.3,1816.2,9.98671342]
[1746406090437,1.95898,1816.3,1816.2,9.98671342]
[1746406090739,0.822,1816.5,1816.3,1.10108]
[1746406090934,1.92296,1816.5,1816.4,1.5839]
[1746406092936,3.58226,1816.5,1816.4,1.5839]
[1746406095545,1.10114,1816.2,1816.1,40.8]
[1746406095842,1.10114,1816.2,1816.1,42.3959]
[1746406096444,1.10114,1816.2,1816.1,1.5959]
[1746406098046,1.1012,1816.1,1816.0,48.10167342]
[1746406098237,1.1012,1816.1,1816.0,7.30167342]
[1746406098238,3.5566,1816.1,1816.0,7.30167342]
[1746406098738,7.1356,1816.1,1816.0,8.94387342]
[1746406099244,7.1356,1816.1,1816.0,1.6422]
[1746406100245,1.10132,1815.9,1815.8,7.30167342]
[1746406100445,4.30912,1815.9,1815.8,8.94387342]
[1746406101840,4.30912,1815.9,1815.8,7.30167342]
[1746406102038,6.00322,1815.9,1815.8,7.30167342]
[1746406104151,1.10138,1815.8,1815.7,1.6249]
[1746406104450,2.76908,1815.8,1815.7,1.6249]
[1746406105549,1.10138,1815.8,1815.7,1.6249]
[1746406105946,1.10138,1815.8,1815.7,2.72634]
[1746406106452,1.10138,1815.8,1815.7,1.6249]
[1746406106956,1.10138,1815.8,1815.7,2.72634]
[1746406107145,1.10137,1815.9,1815.8,1.10138]
[1746406107346,1.10137,1815.9,1815.8,4.38698]
[1746406107852,1.10137,1815.9,1815.8,3.2856]
[1746406109647,1.10137,1815.9,1815.8,4.38698]
[1746406109941,1.10137,1815.9,1815.8,3.2856]
[1746406110153,1.10137,1815.9,1815.8,4.38698]
[1746406110354,7.5816,1816.1,1815.8,4.38698]
[1746406110653,1.10126,1816.0,1815.9,1.6095]
[1746406111257,1.10126,1816.0,1815.9,2.71082]
[1746406112158,1.10126,1816.0,1815.9,1.6095]
[1746406112544,1.10126,1816.0,1815.9,2.71082]
[1746406113156,1.10126,1816.0,1815.9,1.6095]
[1746406113957,1.10126,1816.0,1815.9,2.71082]
[1746406114159,1.10121,1816.1,1816.0,1.10126]
[1746406114357,1.10121,1816.1,1816.0,2.74856]
[1746406115060,1.10118,1816.2,1816.1,1.1012]
[1746406115256,1.10118,1816.2,1816.1,2.4511]
[1746406116258,1.10118,1816.2,1816.1,3.5523]
[1746406117253,1.10112,1816.3,1816.2,1.10114]
[1746406117555,1.10112,1816.3,1816.2,2.3692]
[1746406117758,1.10112,1816.3,1816.2,3.47034]
[1746406117956,1.10112,1816.3,1816.2,2.3692]
[1746406118258,1.10112,1816.3,1816.2,3.47034]
[1746406118461,6.7878,1816.5,1816.3,1.10107]
[1746406118661,7.88876,1816.5,1816.4,1.5861]
[1746406118853,7.88876,1816.5,1816.4,2.4228]
[1746406119564,7.88876,1816.5,1816.4,3.52382]
[1746406119762,7.88876,1816.5,1816.4,2.4228]
[1746406120062,3.58,1816.5,1816.4,3.52382]
[1746406120265,3.2078,1816.7,1816.6,1.1009]
[1746406120457,2.73841,1816.8,1816.6,1.1009]
[1746406120764,5.94621,1816.8,1816.7,1.6017]
[1746406120959,7.59391,1816.8,1816.7,1.6017]
[1746406121960,2.7521,1816.7,1816.3,0.8162]
[1746406122263,7.59391,1816.8,1816.4,1.7158]
[1746406122264,1.10096,1816.5,1816.4,1.7158]
[1746406122564,1.10096,1816.5,1816.4,2.81682]
[1746406122864,5.87755,1816.6,1816.4,2.81682]
[1746406123066,5.87755,1816.6,1816.5,1.7158]
[1746406124365,1.10102,1816.4,1816.3,0.8162]
[1746406124554,1.10102,1816.4,1816.3,1.7158]
[1746406124759,4.30882,1816.4,1816.3,1.7158]
[1746406124959,6.71112,1816.4,1816.3,1.7158]
[1746406130968,1.10102,1816.4,1816.3,1.7158]
[1746406132667,2.74251,1816.5,1816.3,2.81685]
[1746406132971,4.30874,1816.6,1816.4,1.10102]
[1746406133172,4.30874,1816.6,1816.4,2.70372]
[1746406133371,3.2078,1816.6,1816.4,2.70372]
[1746406133671,4.30875,1816.6,1816.5,1.6027]
[1746406134570,4.30875,1816.6,1816.5,2.3888]
[1746406135466,4.30875,1816.6,1816.5,1.6027]
[1746406135664,6.02005,1816.6,1816.5,1.6027]
[1746406136368,4.30875,1816.6,1816.5,1.6027]
[1746406136571,3.2078,1816.6,1816.5,2.70366]
[1746406137274,4.3087,1816.6,1816.5,2.70366]
[1746406137475,4.3087,1816.6,1816.5,1.6027]
[1746406138268,1.1009,1816.6,1816.5,1.6027]
[1746406138469,1.1009,1816.6,1816.5,2.70366]
[1746406138668,2.74239,1816.7,1816.5,1.6027]
[1746406138872,2.74239,1816.7,1816.6,1.5778]
[1746406139776,1.92889,1816.7,1816.6,1.5778]
[1746406139979,1.10089,1816.7,1816.6,1.5778]
[1746406140175,1.10089,1816.7,1816.6,2.3676]
[1746406140373,1.10089,1816.7,1816.6,3.1886]
[1746406141975,1.10089,1816.7,1816.6,1.5778]
[1746406142177,2.81459,1816.7,1816.6,1.5778]
[1746406145581,1.10096,1816.5,1816.4,1.6108]
[1746406145782,1.10096,1816.5,1816.4,1.6577]
[1746406146379,3.60996,1816.5,1816.4,1.6577]
[1746406150083,1.10108,1816.3,1816.2,0.8351]
[1746406150283,1.10108,1816.3,1816.2,2.73344]
[1746406150474,1.10108,1816.3,1816.2,1.6323]
[1746406151880,1.10108,1816.3,1816.2,2.73344]
[1746406152274,2.82026,1816.4,1816.2,2.73344]
[1746406152474,1.10106,1816.4,1816.3,2.77938]
[1746406153177,0.8088,1816.5,1816.3,2.77938]
[1746406153478,1.90976,1816.5,1816.4,2.5126]
[1746406154474,1.90976,1816.5,1816.4,1.6783]
[1746406155483,3.57376,1816.5,1816.4,1.6783]
[1746406155983,1.10114,1816.2,1816.1,4.3744]
[1746406156482,1.10112,1816.3,1816.2,1.10114]
[1746406156781,1.96452,1816.3,1816.2,1.10114]
[1746406157181,0.8634,1816.3,1816.2,1.10114]
[1746406157375,0.8634,1816.3,1816.2,2.69024]
[1746406157884,1.10108,1816.3,1816.2,2.69024]
[1746406158079,0.8088,1816.5,1816.4,1.10102]
[1746406158589,1.90977,1816.5,1816.4,1.10102]
[1746406158777,5.17214,1816.6,1816.5,1.10096]
[1746406158978,4.0712,1816.6,1816.5,1.10096]
[1746406159179,1.10119,1816.2,1816.0,8.40292342]
[1746406159380,1.10119,1816.2,1816.1,1.6449]
[1746406161286,1.10119,1816.2,1816.1,2.7461]
[1746406161492,3.52353,1816.3,1816.2,1.10114]
[1746406161680,3.52353,1816.3,1816.2,2.75364]
[1746406161986,1.95308,1816.3,1816.2,2.75364]
[1746406162178,0.852,1816.3,1816.2,2.75364]
[1746406162989,1.95308,1816.3,1816.2,2.75364]
[1746406165091,1.95308,1816.3,1816.2,1.6525]
[1746406165283,3.53028,1816.3,1816.2,1.6525]
[1746406167490,6.73808,1816.3,1816.2,1.6525]
[1746406172095,1.1012,1816.1,1816.0,11.98089342]
[1746406172593,2.83469,1816.2,1816.0,11.98089342]
[1746406173395,2.83469,1816.2,1816.1,1.589]
[1746406176198,1.10114,1816.2,1816.1,2.6902]
[1746406176696,0.852,1816.3,1816.2,1.10114]
[1746406176896,3.2078,1816.5,1816.3,1.10108]
[1746406177090,1.94204,1816.6,1816.5,1.10096]
[1746406177296,4.51670754,1816.6,1816.5,1.91216]
[1746406177492,3.67560754,1816.6,1816.5,2.77016]
[1746406177887,3.67560754,1816.6,1816.5,4.35246]
[1746406180498,1.10615739,1816.8,1816.6,1.10087]
[1746406180693,1.10615739,1816.8,1816.6,2.75747]
[1746406180893,1.10615739,1816.8,1816.7,2.75744]
[1746406184704,1.10615739,1816.8,1816.7,1.6566]
[1746406185294,1.10615739,1816.8,1816.7,2.75744]
[1746406187800,0.00537739,1816.8,1816.7,2.75744]
[1746406188104,1.10615739,1816.8,1816.7,43.55744]
[1746406188293,1.10615739,1816.8,1816.7,42.4566]
[1746406188705,1.10615739,1816.8,1816.7,43.55744]
[1746406189609,1.10615739,1816.8,1816.7,42.4566]
[1746406192916,0.00537739,1816.8,1816.7,43.55744]
[1746406193706,1.10615739,1816.8,1816.7,42.4566]
[1746406194310,2.78295739,1816.8,1816.7,42.4566]
[1746406195011,5.99075739,1816.8,1816.7,42.4566]
[1746406196616,5.99075739,1816.8,1816.7,43.55744]
[1746406196913,4.30858,1816.8,1816.7,43.55744]
[1746406197115,1.10078,1816.8,1816.7,43.55744]
[1746406199017,0.00537739,1816.8,1816.7,43.55744]
[1746406199417,1.10615739,1816.8,1816.7,43.55744]
[1746406201214,0.00537739,1816.8,1816.7,43.55744]
[1746406204623,0.00537739,1816.8,1816.7,42.4566]
[1746406204624,1.10615739,1816.8,1816.7,42.4566]
[1746406205123,1.10615739,1816.8,1816.7,1.6566]
[1746406205920,2.70495739,1816.8,1816.7,1.6566]
[1746406209924,1.1009,1816.6,1816.5,1.6692]
[1746406210126,2.80018,1816.7,1816.5,1.6692]
[1746406210725,1.10619739,1816.8,1816.6,1.10086]
[1746406211224,1.10619739,1816.8,1816.7,1.5859]
[1746406214527,2.77769739,1816.8,1816.7,1.5859]
[1746406219634,1.10619739,1816.8,1816.7,1.5859]
[1746406227030,1.10619739,1816.8,1816.5,7.30167342]
[1746406227031,1.1009,1816.6,1816.5,7.30167342]
[1746406227528,5.91489,1816.7,1816.5,13.70977014]
[1746406227734,3.58037739,1816.8,1816.6,2.7572]
[1746406227735,4.68119739,1816.8,1816.6,2.7572]
[1746406227933,4.68119739,1816.8,1816.7,1.6563]
[1746406228935,1.10619739,1816.8,1816.7,1.6563]